lending/lending_fUSD_20251116
["ID","MTS","AMOUNT","RATE_DAILY","PERIOD"]
[394144613,1763320246261,-151.0,0.00037131,31]
[394144614,1763320246270,-151.0,0.00037131,31]
[394144615,1763320246280,-151.0,0.00037131,31]
[394144616,1763320246289,-151.0,0.00037131,31]
[394144617,1763320246298,-151.0,0.00037131,31]
[394144618,1763320246308,-151.0,0.00037131,31]
[394144619,1763320246317,-151.0,0.00037131,31]
[394144620,1763320246327,-151.0,0.00037131,31]
[394144621,1763320246336,-151.0,0.00037131,31]
[394144622,1763320246345,-151.0,0.00037131,31]
[394144623,1763320246354,-151.0,0.00037131,31]
[394144624,1763320246364,-151.0,0.00037131,31]
[394144625,1763320246373,-151.0,0.00037131,31]
[394144626,1763320246383,-151.0,0.00037131,31]
[394144627,1763320246393,-151.0,0.00037131,31]
[394144628,1763320246402,-151.0,0.00037131,31]
[394144629,1763320246411,-151.0,0.00037131,31]
[394144630,1763320246421,-237.820981,0.00037131,31]
[394144631,1763320246430,-151.0,0.00037131,31]
[394144632,1763320246440,-151.0,0.00037131,31]
[394144633,1763320246450,-151.0,0.00037131,31]
[394144634,1763320246459,-151.0,0.00037131,31]
[394144635,1763320246470,-151.0,0.00037131,31]
[394144636,1763320246480,-151.0,0.00037131,31]
[394144637,1763320246489,-151.0,0.00037131,31]
[394144638,1763320246499,-151.0,0.00037131,31]
[394144639,1763320246508,-192.897311,0.00037131,31]
[394144640,1763320246518,-151.0,0.00037131,31]
[394144641,1763320246527,-151.0,0.00037131,31]
[394144642,1763320246536,-151.0,0.00037131,31]
[394144643,1763320246545,-151.0,0.00037131,31]
[394144644,1763320246554,-151.0,0.00037131,31]
[394144645,1763320246567,-150.0,0.0003715,24]
[394144646,1763320246576,-1000.0,0.00037151,30]
[394144647,1763320246586,-1200.0,0.00037152,30]
[394144648,1763320246595,-500.0,0.00037182,30]
[394144649,1763320246605,-800.0,0.00037185,30]
[394144650,1763320246617,-543.43,0.000372,30]
[394144651,1763320246627,-500.0,0.00037213,30]
[394144652,1763320246636,-150.0,0.00037259,12]
[394144653,1763320246647,-488.0,0.0003726,12]
[394144654,1763320246657,-1152.9202,0.00037288,30]
[394144655,1763320246667,-616.22593712,0.00037327,2]
[394144656,1763320246679,-1993.64613796,0.00037343,30]
[394144657,1763320246689,-1066.91097843,0.00037343,30]
[394144658,1763320246698,-1000.0,0.00037343,30]
[394144659,1763320246707,-1000.0,0.00037343,30]
[394144660,1763320246717,-1003.34767189,0.00037343,30]
[394144661,1763320246728,-1007.44003484,0.00037343,30]
[394144662,1763320246738,-170.20575878,0.00037369,30]
[394144663,1763320246748,-23772.17451349,0.00037382,2]
[394144664,1763320246758,-192.56,0.000374,14]
[394144665,1763320246769,-1200.0,0.00037408,30]
[394144666,1763320246778,-500.0,0.00037427,30]
[394144667,1763320246787,-500.0,0.00037468,30]
[394144668,1763320246797,-150.0,0.00037478,2]
[394144669,1763320246807,-1152.9202,0.00037488,30]
[394144670,1763320246816,-500.0,0.00037522,30]
[394144671,1763320246825,-500.0,0.00037574,30]
[394144672,1763320246834,-575.0,0.00037575,2]
[394144673,1763320246843,-608.0,0.00037575,2]
[394144674,1763320246852,-1318.0,0.00037575,2]
[394144675,1763320246862,-456.572,0.00037575,2]
[394144676,1763320246873,-821.0,0.00037575,2]
[394144677,1763320246882,-1275.0,0.00037575,2]
[394144678,1763320246893,-793.0,0.00037575,2]
[394144680,1763320246902,-986.34,0.000376,2]
[394144682,1763320246912,-802.3781414,0.00037605,30]
[394144684,1763320246921,-1000.0,0.00037609,30]
[394144686,1763320246931,-500.0,0.00037631,30]
[394144688,1763320246941,-500.0,0.00037643,30]
[394144690,1763320246950,-800.0,0.00037676,30]
[394144692,1763320246959,-1152.9202,0.00037688,30]
[394144694,1763320246970,-800.0,0.00037702,30]
[394144696,1763320246979,-651.4037625,0.00037787,2]
[394144698,1763320246989,-2086.97,0.000378,30]
[394144700,1763320246999,-500.0,0.00037802,30]
[394144702,1763320247009,-500.0,0.00037819,30]
[394144704,1763320247018,-150.0,0.00037826,9]
[394144706,1763320247028,-500.0,0.00037853,30]
[394144708,1763320247038,-1100.0,0.00037882,30]
[394144710,1763320247048,-1152.9202,0.00037888,30]
[394144712,1763320247057,-500.0,0.00037889,30]
[394144714,1763320247067,-29561.0,0.00037918,120]
[394144716,1763320247076,-535.426741,0.00037918,31]
[394144718,1763320247085,-535.426741,0.00037918,31]
[394144720,1763320247096,-535.426741,0.00037918,31]
[394144722,1763320247105,-535.426741,0.00037918,31]
[394144724,1763320247115,-151.0,0.00037918,31]
[394144726,1763320247124,-151.0,0.00037918,31]
[394144728,1763320247135,-151.0,0.00037918,31]
[394144730,1763320247144,-151.0,0.00037918,31]
[394144732,1763320247154,-151.0,0.00037918,31]
[394144734,1763320247163,-151.0,0.00037918,31]
[394144736,1763320247172,-151.0,0.00037918,31]
[394144738,1763320247181,-151.0,0.00037918,31]
[394144739,1763320247191,-151.0,0.00037918,31]
[394144741,1763320247200,-166.66,0.00037945,2]
[394144743,1763320247210,-150.0,0.00037999,31]
[394144745,1763320247221,-378.0,0.00038,30]
[394144747,1763320247231,-543.43,0.00038,30]
[394144749,1763320247241,-192.56,0.00038,14]
[394144751,1763320247251,-500.0,0.00038031,30]
[394144753,1763320247262,-500.0,0.00038058,30]
[394144755,1763320247271,-150.0,0.00038081,13]
[394144757,1763320247281,-1152.9202,0.00038088,30]
[394144759,1763320247291,-1100.0,0.00038099,30]
[394144760,1763320247301,-500.0,0.00038121,30]
[394144761,1763320247312,-1100.0,0.00038158,30]
[394144762,1763320247322,-986.34,0.000382,2]
[394144763,1763320247332,-800.0,0.00038209,30]
[394144764,1763320247342,-1200.0,0.00038214,30]
[394144765,1763320247352,-300.0,0.00038243,2]
[394144766,1763320247361,-300.0,0.00038264,2]
[394144767,1763320247371,-500.0,0.00038266,30]
[394144768,1763320247380,-500.0,0.00038275,30]
[394144769,1763320247390,-1152.9202,0.00038288,30]
[394144770,1763320247400,-500.0,0.00038295,30]
[394144771,1763320247410,-543.43,0.000383,30]
[394144772,1763320247419,-500.0,0.00038308,30]
[394144773,1763320247429,-500.0,0.00038336,30]
[394144774,1763320247438,-3779.5,0.00038356,2]
[394144775,1763320247448,-500.0,0.00038356,2]
[394144776,1763320247457,-300.0,0.00038356,2]
[394144777,1763320247467,-6000.0,0.00038356,5]
[394144778,1763320247479,-500.0,0.00038356,2]
[394144779,1763320247488,-300.0,0.0003836,2]
[394144780,1763320247498,-150.0,0.00038371,7]
[394144781,1763320247508,-300.0,0.00038392,2]
[394144782,1763320247517,-500.0,0.00038394,30]
[394144783,1763320247527,-300.0,0.00038399,2]
[394144784,1763320247537,-503.75956972,0.0003843,30]
[394144785,1763320247546,-500.0,0.0003843,30]
[394144786,1763320247556,-300.0,0.00038443,2]
[394144787,1763320247566,-300.0,0.00038445,2]
[394144788,1763320247576,-300.0,0.00038462,2]
[394144789,1763320247586,-300.0,0.00038465,2]
[394144790,1763320247599,-500.0,0.00038473,30]
[394144791,1763320247609,-173.66417673,0.00038484,30]
[394144792,1763320247619,-1152.9202,0.00038488,30]
[394144793,1763320247629,-300.0,0.00038532,2]
[394144794,1763320247638,-300.0,0.00038555,2]
[394144795,1763320247648,-205.72718128,0.00038566,15]
[394144796,1763320247657,-500.0,0.00038571,30]
[394144797,1763320247667,-150.0,0.00038576,15]
[394144798,1763320247676,-300.0,0.0003859,2]
[394144799,1763320247687,-192.56,0.000386,14]
[394144800,1763320247697,-300.0,0.00038607,2]
[394144801,1763320247707,-150.0,0.0003863,2]
[394144802,1763320247717,-523.24198587,0.0003863,2]
[394144803,1763320247731,-151.0,0.0003863,120]
[394144804,1763320247741,-299.701289,0.0003863,120]
[394144805,1763320247751,-299.701289,0.0003863,120]
[394144806,1763320247811,-299.701289,0.0003863,120]
[394144807,1763320247821,-299.701289,0.0003863,120]
[394144808,1763320247833,-151.0,0.0003863,120]
[394144809,1763320247843,-151.0,0.0003863,120]
[394144810,1763320247852,-151.0,0.0003863,120]
[394144811,1763320247861,-151.0,0.0003863,120]
[394144812,1763320247871,-151.0,0.0003863,120]
[394144813,1763320247880,-194.389047,0.0003863,120]
[394144814,1763320247890,-151.0,0.0003863,10]
[394144815,1763320247899,-3779.5,0.0003863,2]
[394144816,1763320247908,-151.0,0.0003863,95]
[394144817,1763320247918,-151.0,0.0003863,95]
[394144818,1763320247929,-536.898686,0.0003863,28]
[394144819,1763320247939,-536.898686,0.0003863,28]
[394144820,1763320247949,-536.898686,0.0003863,28]
[394144821,1763320247959,-536.898686,0.0003863,28]
[394144822,1763320247970,-500.0,0.0003863,2]
[394144823,1763320247986,-219.036736,0.0003863,120]
[394144824,1763320247995,-151.0,0.0003863,120]
[394144825,1763320248005,-151.0,0.0003863,120]
[394144826,1763320248014,-151.0,0.0003863,120]
[394144827,1763320248025,-151.0,0.0003863,120]
[394144828,1763320248034,-301.95128,0.0003863,120]
[394144829,1763320248043,-300.0,0.0003863,2]
[394144830,1763320248053,-226.0,0.0003863,5]
[394144831,1763320248063,-500.0,0.0003863,2]
[394144832,1763320248073,-300.0,0.00038634,2]
[394144833,1763320248083,-1000.0,0.00038637,30]
[394144834,1763320248093,-1200.0,0.00038642,30]
[394144835,1763320248104,-300.0,0.00038642,2]
[394144836,1763320248115,-300.0,0.00038649,2]
[394144837,1763320248125,-300.0,0.0003865,2]
[394144838,1763320248137,-150.0,0.00038651,7]
[394144839,1763320248147,-300.0,0.00038652,2]
[394144840,1763320248157,-300.0,0.00038656,2]
[394144841,1763320248167,-300.0,0.0003866,2]
[394144842,1763320248177,-300.0,0.00038678,2]
[394144843,1763320248189,-1000.0,0.0003868,7]
[394144844,1763320248199,-300.0,0.00038686,2]
[394144845,1763320248209,-1152.9202,0.00038688,30]
[394144846,1763320248221,-300.0,0.00038693,2]
[394144847,1763320248233,-300.0,0.00038693,2]
[394144848,1763320248243,-150.0,0.00038699,3]
[394144849,1763320248253,-150.0,0.00038699,4]
[394144850,1763320248262,-150.0,0.00038699,117]
[394144851,1763320248272,-5501.0,0.000387,117]
[394144852,1763320248281,-300.0,0.00038702,2]
[394144853,1763320248290,-800.0,0.00038717,30]
[394144854,1763320248300,-300.0,0.00038732,2]
[394144855,1763320248310,-500.0,0.00038751,30]
[394144856,1763320248319,-500.0,0.00038754,30]
[394144857,1763320248329,-300.0,0.00038757,2]
[394144858,1763320248339,-150.0,0.00038801,7]
[394144859,1763320248349,-291.93441405,0.00038803,7]
[394144860,1763320248358,-300.0,0.00038808,2]
[394144861,1763320248367,-300.0,0.00038818,2]
[394144862,1763320248377,-300.0,0.00038829,2]
[394144863,1763320248387,-214.89664467,0.00038835,2]
[394144864,1763320248396,-300.0,0.0003884,2]
[394144865,1763320248406,-300.0,0.00038854,2]
[394144866,1763320248416,-300.0,0.00038864,2]
[394144867,1763320248426,-300.0,0.00038878,2]
[394144868,1763320248436,-300.0,0.00038893,2]
[394144869,1763320248449,-151.0,0.00038894,120]
[394144870,1763320248459,-151.0,0.00038894,120]
[394144871,1763320248475,-151.0,0.00038894,120]
[394144872,1763320248486,-151.0,0.00038894,120]
[394144873,1763320248497,-165.666462,0.00038894,120]
[394144874,1763320248507,-199.757326,0.00038894,120]
[394144875,1763320248516,-199.757326,0.00038894,120]
[394144876,1763320248527,-199.757326,0.00038894,120]
[394144877,1763320248537,-199.757326,0.00038894,120]
[394144878,1763320248548,-986.34,0.000389,30]
[394144879,1763320248558,-1700.0,0.000389,14]
[394144880,1763320248568,-3779.5,0.00038904,2]
[394144881,1763320248578,-500.0,0.00038904,2]
[394144882,1763320248588,-300.0,0.00038904,2]
[394144883,1763320248599,-500.0,0.00038904,2]
[394144884,1763320248611,-1200.0,0.00038914,30]
[394144885,1763320248622,-300.0,0.00038917,2]
[394144886,1763320248636,-300.0,0.00038919,2]
[394144887,1763320248646,-1100.0,0.00038926,30]
[394144888,1763320248657,-300.0,0.00038929,2]
[394144889,1763320248667,-300.0,0.00038944,2]
[394144890,1763320248677,-150.0,0.0003896,7]
[394144891,1763320248687,-300.0,0.00038971,2]
[394144892,1763320248698,-150.0,0.00038972,10]
[394144893,1763320248708,-300.0,0.00038982,2]
[394144894,1763320248723,-300.0,0.00038987,2]
[394144895,1763320248735,-388.91645,0.0003899,2]
[394144896,1763320248746,-300.0,0.00038994,2]
[394144897,1763320248757,-300.0,0.00038995,2]
[394144898,1763320248767,-277.35679052,0.00038999,5]
[394144899,1763320248777,-287.61899177,0.00038999,5]
[394144900,1763320248788,-298.26089446,0.00038999,5]
[394144901,1763320248798,-309.29654756,0.00038999,5]
[394144902,1763320248808,-320.74051982,0.00038999,5]
[394144903,1763320248817,-332.60791905,0.00038999,5]
[394144904,1763320248827,-344.91441206,0.00038999,5]
[394144905,1763320248837,-357.6762453,0.00038999,5]
[394144906,1763320248847,-370.91026638,0.00038999,5]
[394144907,1763320248858,-384.63394623,0.00038999,5]
[394144908,1763320248868,-398.86540225,0.00038999,5]
[394144909,1763320248879,-150.0,0.00038999,5]
[394144910,1763320248888,-2000.0,0.00039,2]
[394144911,1763320248899,-378.0,0.00039,30]
[394144912,1763320248909,-1112.01198495,0.00039,120]
[394144913,1763320248920,-543.43,0.00039,30]
[394144914,1763320248929,-300.0,0.00039,2]
[394144915,1763320248939,-1008.17409429,0.00039,7]
[394144916,1763320248949,-300.0,0.00039005,2]
[394144917,1763320248959,-300.0,0.00039005,2]
[394144918,1763320248971,-300.0,0.00039019,2]
[394144919,1763320248983,-300.0,0.00039021,2]
[394144920,1763320248992,-300.0,0.00039022,2]
[394144921,1763320249002,-500.0,0.00039031,30]
[394144922,1763320249012,-300.0,0.00039031,2]
[394144923,1763320249022,-300.0,0.00039031,2]
[394144924,1763320249031,-300.0,0.00039033,2]
[394144925,1763320249041,-300.0,0.00039034,2]
[394144926,1763320249050,-300.0,0.00039058,2]
[394144927,1763320249061,-300.0,0.00039065,2]
[394144928,1763320249071,-300.0,0.00039068,2]
[394144929,1763320249080,-300.0,0.00039071,2]
[394144930,1763320249089,-300.0,0.00039072,2]
[394144931,1763320249099,-150.0,0.00039079,7]
[394144932,1763320249109,-214.89664468,0.00039085,2]
[394144933,1763320249119,-1152.9202,0.00039088,30]
[394144934,1763320249129,-300.0,0.00039089,2]
[394144935,1763320249139,-300.0,0.00039091,2]
[394144936,1763320249149,-300.0,0.00039103,2]
[394144937,1763320249159,-300.0,0.00039105,2]
[394144938,1763320249169,-300.0,0.00039106,2]
[394144939,1763320249179,-300.0,0.00039146,2]
[394144940,1763320249188,-166.66,0.00039157,2]
[394144941,1763320249198,-300.0,0.00039161,2]
[394144942,1763320249209,-300.0,0.00039171,2]
[394144943,1763320249218,-300.0,0.00039174,2]
[394144944,1763320249231,-3779.5,0.00039178,2]
[394144945,1763320249241,-500.0,0.00039178,2]
[394144946,1763320249251,-300.0,0.00039178,2]
[394144947,1763320249261,-500.0,0.00039178,2]
[394144948,1763320249271,-1000.0,0.00039178,14]
[394144949,1763320249281,-23772.17451349,0.00039183,2]
[394144950,1763320249291,-1000.0,0.000392,7]
[394144951,1763320249301,-300.0,0.00039207,2]
[394144952,1763320249312,-300.0,0.00039218,2]
[394144953,1763320249323,-150.0,0.00039226,7]
[394144954,1763320249333,-300.0,0.00039228,2]
[394144955,1763320249343,-300.0,0.00039234,2]
[394144956,1763320249354,-172.79928841,0.00039239,2]
[394144957,1763320249363,-300.0,0.00039242,10]
[394144958,1763320249374,-300.0,0.00039242,10]
[394144959,1763320249384,-48546.1297055,0.00039243,2]
[394144960,1763320249394,-12098.8263311,0.00039243,2]
[394144961,1763320249405,-3301.9781507,0.00039243,2]
[394144962,1763320249415,-272549.08270417,0.00039243,2]
[394144963,1763320249866,-6488.0,0.00025131,2]
[394144964,1763320249878,-6488.0,0.00028131,2]
[394144965,1763320249890,-6488.0,0.00031131,2]
[394144966,1763320249900,-150.0,0.00032987,2]
[394144967,1763320249910,-150.0,0.00033042,2]
[394144968,1763320249920,-150.0,0.00033097,2]
[394144969,1763320249930,-150.0,0.00033151,2]
[394144970,1763320249940,-150.0,0.00033206,2]
[394144971,1763320249950,-250.0,0.00033261,2]
[394144972,1763320249960,-6488.0,0.00034131,2]
[394144973,1763320249972,-151.0,0.00036454,31]
[394144974,1763320249985,-341296.03910473,0.00039243,2]
[394144975,1763320249996,-151.0,0.00039243,120]
[394144976,1763320250006,-151.0,0.00039243,120]
[394144977,1763320250016,-151.0,0.00039243,120]
[394144978,1763320250026,-151.0,0.00039243,120]
[394144979,1763320250035,-182.483269,0.00039243,120]
[394144980,1763320250045,-151.0,0.00039243,120]
[394144981,1763320250055,-159.588753,0.00039243,120]
[394144982,1763320250064,-151.0,0.00039243,120]
[394144983,1763320250074,-151.0,0.00039243,120]
[394144984,1763320250083,-170.963641,0.00039243,120]
[394144985,1763320250094,-151.0,0.00039243,120]
[394144986,1763320250104,-151.0,0.00039243,120]
[394144987,1763320250115,-151.0,0.00039243,120]
[394144988,1763320250125,-151.0,0.00039243,120]
[394144989,1763320250135,-151.0,0.00039243,120]
[394144990,1763320250147,-151.0,0.00039243,30]
[394144991,1763320250157,-151.0,0.00039243,120]
[394144992,1763320250166,-151.0,0.00039243,60]
[394144993,1763320250176,-151.0,0.00039243,120]
[394144994,1763320250186,-151.0,0.00039243,120]
[394144995,1763320250196,-151.0,0.00039243,120]
[394144996,1763320250206,-151.0,0.00039243,120]
[394144997,1763320250216,-151.0,0.00039243,120]
[394144998,1763320250231,-151.0,0.00039243,120]
[394144999,1763320250241,-151.0,0.00039243,120]
[394145000,1763320250251,-151.0,0.00039243,120]
[394145001,1763320250419,-151.0,0.00039243,120]
[394145002,1763320250432,-151.0,0.00039243,120]
[394145003,1763320250443,-153.708628,0.00039243,120]
[394145004,1763320250453,-151.0,0.00039243,120]
[394145005,1763320250462,-238.280724,0.00039243,120]
[394145006,1763320250474,-151.0,0.00039243,120]
[394145007,1763320250483,-238.280724,0.00039243,120]
[394145008,1763320250493,-151.0,0.00039243,120]
[394145009,1763320250503,-238.280724,0.00039243,120]
[394145010,1763320250513,-238.280724,0.00039243,120]
[394145011,1763320250524,-151.0,0.00039243,120]
[394145012,1763320250534,-151.0,0.00039243,90]
[394145013,1763320250543,-151.0,0.00039243,120]
[394145014,1763320250553,-151.0,0.00039243,120]
[394145015,1763320250562,-167528.9093822,0.00039243,2]
[394145016,1763320250571,-163.405208,0.00039243,120]
[394145017,1763320250581,-170.456547,0.00039243,120]
[394145018,1763320250591,-151.0,0.00039243,15]
[394145019,1763320250605,-151.0,0.00039243,120]
[394145020,1763320250615,-151.0,0.00039243,120]
[394145021,1763320250624,-151.0,0.00039243,15]
[394145022,1763320250635,-151.0,0.00039243,15]
[394145023,1763320250647,-151.0,0.00039243,120]
[394145024,1763320250658,-151.0,0.00039243,120]
[394145025,1763320250667,-151.0,0.00039243,120]
[394145026,1763320250677,-151.0,0.00039243,120]
[394145027,1763320250687,-225.032242,0.00039243,120]
[394145028,1763320250699,-299.701289,0.00039243,120]
[394145029,1763320250710,-299.701289,0.00039243,120]
[394145030,1763320250719,-299.701289,0.00039243,120]
[394145031,1763320250733,-299.701289,0.00039243,120]
[394145032,1763320250744,-151.0,0.00039243,120]
[394145033,1763320250753,-151.0,0.00039243,120]
[394145034,1763320250763,-151.0,0.00039243,120]
[394145035,1763320250772,-151.0,0.00039243,120]
[394145036,1763320250782,-151.0,0.00039243,10]
[394145037,1763320250792,-151.0,0.00039243,95]
[394145038,1763320250802,-151.0,0.00039243,95]
[394145039,1763320250812,-536.898686,0.00039243,28]
[394145040,1763320250821,-536.898686,0.00039243,28]
[394145041,1763320250830,-536.898686,0.00039243,28]
[394145042,1763320250840,-536.898686,0.00039243,28]
[394145043,1763320250850,-151.0,0.00039243,120]
[394145044,1763320250859,-275.190011,0.00039243,120]
[394145045,1763320250870,-151.0,0.00039243,120]
[394145046,1763320250880,-151.0,0.00039243,120]
[394145047,1763320250890,-535.426741,0.00039243,120]
[394145048,1763320250899,-535.426741,0.00039243,120]
[394145049,1763320250909,-535.426741,0.00039243,120]
[394145050,1763320250918,-535.426741,0.00039243,120]
[394145051,1763320250927,-151.0,0.00039243,120]
[394145052,1763320250936,-151.0,0.00039243,120]
[394145053,1763320250946,-151.0,0.00039243,120]
[394145054,1763320250955,-151.0,0.00039243,120]
[394145055,1763320250964,-151.0,0.00039243,120]
[394145056,1763320250978,-151.0,0.00039243,120]
[394145057,1763320250988,-209.2622614,0.00039243,2]
[394145058,1763320250998,-151.0,0.00039243,120]
[394145059,1763320251008,-151.0,0.00039243,120]
[394145060,1763320251017,-151.0,0.00039243,120]
[394145061,1763320251027,-151.0,0.00039243,120]
[394145062,1763320251036,-151.0,0.00039243,120]
[394145063,1763320251046,-151.0,0.00039243,120]
[394145064,1763320251056,-151.0,0.00039243,120]
[394145065,1763320251066,-151.0,0.00039243,120]
[394145066,1763320251076,-151.0,0.00039243,120]
[394145067,1763320251086,-151.0,0.00039243,120]
[394145068,1763320251095,-151.0,0.00039243,120]
[394145069,1763320251106,-151.0,0.00039243,120]
[394145070,1763320251117,-151.0,0.00039243,120]
[394145071,1763320251127,-151.0,0.00039243,120]
[394145072,1763320251137,-766.7609056,0.00039243,2]
[394145073,1763320251148,-151.0,0.00039243,120]
[394145074,1763320251157,-151.0,0.00039243,120]
[394145075,1763320251167,-151.0,0.00039243,120]
[394145076,1763320251177,-151.0,0.00039243,120]
[394145077,1763320251187,-151.0,0.00039243,120]
[394145078,1763320251198,-151.0,0.00039243,120]
[394145079,1763320251208,-151.0,0.00039243,120]
[394145080,1763320251219,-151.0,0.00039243,120]
[394145081,1763320251235,-151.0,0.00039243,120]
[394145082,1763320251248,-151.0,0.00039243,120]
[394145083,1763320251260,-151.0,0.00039243,120]
[394145084,1763320251270,-151.0,0.00039243,120]
[394145085,1763320251280,-151.0,0.00039243,120]
[394145086,1763320251290,-151.0,0.00039243,120]
[394145087,1763320251300,-151.0,0.00039243,120]
[394145088,1763320251310,-174.433953,0.00039243,120]
[394145089,1763320251320,-174.433953,0.00039243,120]
[394145090,1763320251330,-217.445781,0.00039243,120]
[394145091,1763320251341,-174.433953,0.00039243,120]
[394145092,1763320251353,-174.433953,0.00039243,120]
[394145093,1763320251366,-235.011081,0.00039243,120]
[394145094,1763320251377,-235.011081,0.00039243,120]
[394145095,1763320251387,-235.011081,0.00039243,120]
[394145096,1763320251397,-188.279895,0.00039243,120]
[394145097,1763320251408,-235.011081,0.00039243,120]
[394145098,1763320251419,-1695.742304,0.00039243,120]
[394145099,1763320251429,-151.0,0.00039243,120]
[394145100,1763320251439,-1695.742304,0.00039243,120]
[394145101,1763320251451,-188.279895,0.00039243,120]
[394145102,1763320251463,-1695.742304,0.00039243,120]
[394145103,1763320251481,-151.0,0.00039243,120]
[394145104,1763320251491,-188.279895,0.00039243,120]
[394145105,1763320251501,-151.0,0.00039243,120]
[394145106,1763320251512,-1695.742304,0.00039243,120]
[394145107,1763320251522,-188.279895,0.00039243,120]
[394145108,1763320251533,-151.0,0.00039243,120]
[394145109,1763320251543,-277.335366,0.00039243,120]
[394145110,1763320251554,-216.330313,0.00039243,30]
[394145111,1763320251564,-216.330313,0.00039243,30]
[394145112,1763320251577,-216.330313,0.00039243,30]
[394145113,1763320251586,-216.330313,0.00039243,30]
[394145114,1763320251597,-177.820604,0.00039243,120]
[394145115,1763320251606,-177.820604,0.00039243,120]
[394145116,1763320251619,-151.0,0.00039243,120]
[394145117,1763320251629,-177.820604,0.00039243,120]
[394145118,1763320251639,-177.820604,0.00039243,120]
[394145119,1763320251649,-386.376677,0.00039243,120]
[394145120,1763320251659,-386.376677,0.00039243,120]
[394145121,1763320251668,-386.376677,0.00039243,120]
[394145122,1763320251678,-386.376677,0.00039243,120]
[394145123,1763320251689,-151.0,0.00039243,120]
[394145124,1763320251699,-181.313631,0.00039243,120]
[394145125,1763320251709,-151.0,0.00039243,120]
[394145126,1763320251719,-151.0,0.00039243,120]
[394145127,1763320251737,-151.0,0.00039243,120]
[394145128,1763320251747,-12452.6018038,0.00039243,2]
[394145129,1763320251757,-151.0,0.00039243,120]
[394145130,1763320251767,-151.0,0.00039243,120]
[394145131,1763320251777,-151.0,0.00039243,120]
[394145132,1763320251787,-202.005094,0.00039243,120]
[394145133,1763320251796,-151.0,0.00039243,120]
[394145134,1763320251806,-151.0,0.00039243,120]
[394145135,1763320251816,-151.0,0.00039243,120]
[394145136,1763320251827,-151.0,0.00039243,120]
[394145137,1763320251837,-614.064354,0.00039243,120]
[394145138,1763320251847,-614.064354,0.00039243,120]
[394145139,1763320251858,-151.0,0.00039243,30]
[394145140,1763320251867,-614.064354,0.00039243,120]
[394145141,1763320251876,-151.0,0.00039243,120]
[394145142,1763320251887,-614.064354,0.00039243,120]
[394145143,1763320251896,-151.0,0.00039243,120]
[394145144,1763320251905,-151.0,0.00039243,120]
[394145145,1763320251911,-187.597508,0.00039243,120]
[394145146,1763320251920,-300.0,0.0003925,2]
[394145147,1763320251929,-150.0,0.00039266,90]
[394145148,1763320251936,-1100.0,0.00039287,30]
[394145149,1763320251943,-1152.9202,0.00039288,30]
[394145150,1763320251950,-300.0,0.00039293,2]
[394145151,1763320251958,-2000.0,0.000393,2]
[394145152,1763320251965,-300.0,0.00039312,2]